[Event "44th Chess Olympiad Women 2022"]
[Site "Chennai"]
[Date "2022.08.08"]
[Round "10.42"]
[White "Andre, Chineva Rufino"]
[Black "Sovetbekova, Nurai"]
[Result "0-1"]
[WhiteElo "1171"]
[BlackElo "1693"]
[Annotator "NA RC"]
[PlyCount "70"]
[EventDate "2022.??.??"]
[TimeControl "60"]

1. e4 {[%emt 0:00:05]} c5 {[%emt 0:00:12]} 2. Nf3 {[%emt 0:03:54]} d6 {[%emt 0:
00:00]} 3. Nc3 {[%emt 0:02:10]} Nf6 {[%emt 0:01:22]} 4. Bc4 {[%emt 0:04:05]} e6
{[%emt 0:01:36]} 5. O-O {[%emt 0:02:11]} Be7 {[%emt 0:01:19]} 6. d4 {[%emt 0:
00:00]} cxd4 {[%emt 0:03:25]} 7. Nxd4 {[%emt 0:01:58]} a6 {[%emt 0:02:46]} 8.
Re1 {[%emt 0:03:58]} b5 {[%emt 0:09:23]} 9. Bd3 {[%emt 0:04:00]} Qc7 {[%emt 0:
00:00]} 10. Bg5 {[%emt 0:04:46]} Nbd7 {[%emt 0:01:20]} 11. f4 {[%emt 0:05:11]}
Qb6 {[%emt 0:04:42]} 12. Nce2 {[%emt 0:02:40]} e5 {[%emt 0:01:16]} 13. fxe5 {
[%emt 0:02:59]} dxe5 {[%emt 0:00:05]} 14. c3 {[%emt 0:00:27]} O-O {[%emt 0:00:
00]} 15. Kh1 {[%emt 0:00:38]} Ng4 {[%emt 0:03:59]} 16. Qd2 {[%emt 0:02:38]}
Bxg5 {[%emt 0:03:37]} 17. Qxg5 {[%emt 0:00:27]} Nf2+ {[%emt 0:00:06]} 18. Kg1 {
[%emt 0:00:19]} Nxd3 {[%emt 0:00:09]} 19. Rf1 {[%emt 0:00:58]} Bb7 {[%emt 0:00:
00]} 20. Qe3 {[%emt 0:02:25]} Nxb2 {[%emt 0:01:28]} 21. Rf3 {[%emt 0:02:49]}
Nc4 {[%emt 0:01:00]} 22. Qd3 {[%emt 0:02:29]} exd4 {[%emt 0:01:16]} 23. cxd4 {
[%emt 0:00:20]} Nde5 {[%emt 0:00:22]} 24. Qb3 {[%emt 0:00:46]} Nxf3+ {[%emt 0:
00:00]} 25. Qxf3 {[%emt 0:00:19]} Nd2 {[%emt 0:00:07]} 26. Qg4 {[%emt 0:01:17]}
Nxe4 {[%emt 0:00:12]} 27. Rf1 {[%emt 0:00:34]} Rad8 {[%emt 0:00:12]} 28. h3 {
[%emt 0:00:34]} Qg6 {[%emt 0:00:15]} 29. Qf4 {[%emt 0:00:38]} Nc3 {[%emt 0:00:
00]} 30. Ng3 {[%emt 0:00:30]} Qxg3 {[%emt 0:00:20]} 31. Qd2 {[%emt 0:00:48]}
Rxd4 {[%emt 0:00:13]} 32. Qc2 {[%emt 0:00:17]} Rfd8 {[%emt 0:01:31]} 33. a3 {
[%emt 0:00:32]} Rd2 {[%emt 0:00:06]} 34. Qxd2 {[%emt 0:00:40]} Rxd2 {[%emt 0:
00:00]} 35. Re1 {[%emt 0:00:15]} Qxg2# {[%emt 0:00:05]} 0-1

[Event "44th Chess Olympiad Women 2022"]
[Site "Chennai"]
[Date "2022.08.08"]
[Round "10.42"]
[White "Castro, Neusa Aridas De"]
[Black "Zairbek kyzy, Begimai"]
[Result "0-1"]
[WhiteElo "1531"]
[BlackElo "1949"]
[Annotator "NA RC"]
[PlyCount "74"]
[EventDate "2022.??.??"]
[TimeControl "60"]

1. e4 {[%emt 0:00:06]} c6 {[%emt 0:00:05]} 2. Nc3 {[%emt 0:00:20]} d5 {[%emt 0:
00:00]} 3. exd5 {[%emt 0:00:24]} cxd5 {[%emt 0:00:04]} 4. d4 {[%emt 0:00:15]}
Nc6 {[%emt 0:00:15]} 5. Nf3 {[%emt 0:00:15]} Bg4 {[%emt 0:00:29]} 6. Be2 {
[%emt 0:01:29]} e6 {[%emt 0:01:48]} 7. Bf4 {[%emt 0:01:32]} Bb4 {[%emt 0:00:44]
} 8. O-O {[%emt 0:04:01]} Nf6 {[%emt 0:01:46]} 9. Nb5 {[%emt 0:01:06]} O-O {
[%emt 0:00:10]} 10. a3 {[%emt 0:00:10]} Be7 {[%emt 0:00:36]} 11. h3 {[%emt 0:
00:00]} Bh5 {[%emt 0:00:19]} 12. Nc3 {[%emt 0:00:48]} Rc8 {[%emt 0:00:14]} 13.
Nh2 {[%emt 0:01:43]} Bg6 {[%emt 0:01:12]} 14. Be3 {[%emt 0:00:58]} Na5 {
[%emt 0:02:45]} 15. Bd3 {[%emt 0:06:25]} Nc4 {[%emt 0:01:09]} 16. Rb1 {[%emt 0:
00:00]} Nxb2 {[%emt 0:09:59]} 17. Rxb2 {[%emt 0:02:14]} Rxc3 {[%emt 0:03:47]}
18. Bxg6 {[%emt 0:02:17]} hxg6 {[%emt 0:00:24]} 19. Rxb7 {[%emt 0:00:27]} Rxa3
{[%emt 0:00:39]} 20. Qb1 {[%emt 0:02:21]} Bd6 {[%emt 0:01:12]} 21. Nf3 {
[%emt 0:10:16]} Ne4 {[%emt 0:01:34]} 22. c4 {[%emt 0:04:39]} Nc3 {[%emt 0:00:
00]} 23. Qd3 {[%emt 0:07:46]} Qc8 {[%emt 0:01:45]} 24. Bc1 {[%emt 0:11:06]}
dxc4 {[%emt 0:01:39]} 25. Qc2 {[%emt 0:02:05]} Ra2 {[%emt 0:00:27]} 26. Qxc3 {
[%emt 0:00:46]} Qxb7 {[%emt 0:00:12]} 27. Qxc4 {[%emt 0:00:08]} Ra1 {[%emt 0:
00:00]} 28. Qd3 {[%emt 0:04:35]} Rc8 {[%emt 0:00:37]} 29. Be3 {[%emt 0:06:39]}
Rxf1+ {[%emt 0:00:59]} 30. Kxf1 {[%emt 0:02:03]} a5 {[%emt 0:00:14]} 31. Nd2 {
[%emt 0:03:26]} Rc1+ {[%emt 0:01:32]} 32. Ke2 {[%emt 0:00:12]} Qxg2 {[%emt 0:
00:00]} 33. Qb5 {[%emt 0:04:02]} Bb4 {[%emt 0:04:58]} 34. Qe8+ {[%emt 0:02:07]}
Kh7 {[%emt 0:00:05]} 35. Qxf7 {[%emt 0:00:55]} Bxd2 {[%emt 0:00:57]} 36. Bxd2 {
[%emt 0:02:39]} Qe4+ {[%emt 0:00:09]} 37. Be3 {[%emt 0:01:15]} Rc2+ {[%emt 0:
00:00]} 0-1

[Event "44th Chess Olympiad Women 2022"]
[Site "Chennai"]
[Date "2022.08.08"]
[Round "10.42"]
[White "Samaganova, Alexandra"]
[Black "Vilhete, Vania Fausto Da T."]
[Result "1/2-1/2"]
[WhiteElo "1864"]
[BlackElo "1701"]
[Annotator "NA RC"]
[PlyCount "156"]
[EventDate "2022.??.??"]
[TimeControl "60"]

1. c4 {[%emt 0:00:08]} Nf6 {[%emt 0:00:07]} 2. Nc3 {[%emt 0:00:10]} e5 {
[%emt 0:00:07]} 3. Nf3 {[%emt 0:00:11]} Nc6 {[%emt 0:00:36]} 4. a3 {[%emt 0:00:
00]} d5 {[%emt 0:00:33]} 5. cxd5 {[%emt 0:00:20]} Nxd5 {[%emt 0:00:24]} 6. Qc2
{[%emt 0:00:55]} Nb6 {[%emt 0:00:53]} 7. e3 {[%emt 0:01:23]} a6 {[%emt 0:00:55]
} 8. b4 {[%emt 0:02:25]} Bg4 {[%emt 0:06:18]} 9. Be2 {[%emt 0:01:33]} Be7 {
[%emt 0:00:39]} 10. Bb2 {[%emt 0:06:25]} Qd6 {[%emt 0:31:19]} 11. b5 {[%emt 0:
00:00]} Bxf3 {[%emt 0:14:27]} 12. Bxf3 {[%emt 0:02:59]} axb5 {[%emt 0:05:43]}
13. Nxb5 {[%emt 0:00:35]} Qd7 {[%emt 0:00:46]} 14. O-O {[%emt 0:22:26]} O-O {
[%emt 0:04:44]} 15. Rfc1 {[%emt 0:08:02]} Ra5 {[%emt 0:02:00]} 16. Be2 {
[%emt 0:10:12]} Rd8 {[%emt 0:02:07]} 17. Bc3 {[%emt 0:07:39]} Raa8 {[%emt 0:00:
00]} 18. Rcb1 {[%emt 0:14:07]} Na4 {[%emt 0:01:35]} 19. d3 {[%emt 0:01:52]}
Nxc3 {[%emt 0:03:04]} 20. Qxc3 {[%emt 0:01:17]} Bf6 {[%emt 0:05:00]} 21. Ra2 {
[%emt 0:00:32]} Qe7 {[%emt 0:07:05]} 22. Rc2 {[%emt 0:00:49]} g6 {[%emt 0:00:
00]} 23. h3 {[%emt 0:00:14]} Bg7 {[%emt 0:00:13]} 24. Qc4 {[%emt 0:00:26]} Kh8
{[%emt 0:00:56]} 25. Bf3 {[%emt 0:01:37]} Ra6 {[%emt 0:02:18]} 26. Be2 {
[%emt 0:00:45]} Rb6 {[%emt 0:01:26]} 27. Rcc1 {[%emt 0:01:09]} Rd7 {[%emt 0:00:
00]} 28. a4 {[%emt 0:00:50]} h6 {[%emt 0:01:14]} 29. Qa2 {[%emt 0:00:57]} Nb4 {
[%emt 0:01:28]} 30. Qb3 {[%emt 0:00:27]} Nc6 {[%emt 0:01:54]} 31. Qc3 {[%emt 0:
00:00]} Ra6 {[%emt 0:00:31]} 32. Bd1 {[%emt 0:00:47]} Qd8 {[%emt 0:00:47]} 33.
Bc2 {[%emt 0:00:09]} Kh7 {[%emt 0:00:34]} 34. Na3 {[%emt 0:00:22]} Ra7 {
[%emt 0:01:05]} 35. Nc4 {[%emt 0:00:13]} f6 {[%emt 0:01:29]} 36. Rb5 {[%emt 0:
00:00]} Ne7 {[%emt 0:00:28]} 37. Rcb1 {[%emt 0:00:39]} Nd5 {[%emt 0:00:19]} 38.
Qe1 {[%emt 0:00:57]} c6 {[%emt 0:00:32]} 39. R5b2 {[%emt 0:00:57]} Bf8 {
[%emt 0:00:35]} 40. Bd1 {[%emt 0:01:14]} Bc5 {[%emt 0:01:26]} 41. Bc2 {[%emt 0:
00:00]} Ne7 {[%emt 0:01:53]} 42. Rd1 {[%emt 0:06:37]} Nc8 {[%emt 0:02:57]} 43.
Rd2 {[%emt 0:03:30]} Qe7 {[%emt 0:02:16]} 44. Qb1 {[%emt 0:00:51]} f5 {[%emt 0:
00:00]} 45. Bd1 {[%emt 0:02:09]} Qe6 {[%emt 0:09:50]} 46. Qc2 {[%emt 0:05:22]}
Bf8 {[%emt 0:02:57]} 47. Qc3 {[%emt 0:02:44]} Bg7 {[%emt 0:00:10]} 48. Qb4 {
[%emt 0:00:16]} Qe7 {[%emt 0:03:03]} 49. Qb3 {[%emt 0:02:17]} e4 {[%emt 0:00:
00]} 50. Ra2 {[%emt 0:01:38]} exd3 {[%emt 0:00:40]} 51. Rxd3 {[%emt 0:00:14]}
Rxd3 {[%emt 0:00:21]} 52. Qxd3 {[%emt 0:00:01]} b5 {[%emt 0:00:26]} 53. Nd2 {
[%emt 0:01:02]} Nb6 {[%emt 0:01:45]} 54. a5 {[%emt 0:01:01]} Nd5 {[%emt 0:00:
00]} 55. Qa3 {[%emt 0:02:46]} b4 {[%emt 0:00:41]} 56. Qc1 {[%emt 0:00:49]} Nc3
{[%emt 0:00:18]} 57. Rc2 {[%emt 0:00:29]} Rxa5 {[%emt 0:00:20]} 58. Nb3 {
[%emt 0:00:20]} Rd5 {[%emt 0:00:21]} 59. Rd2 {[%emt 0:00:22]} Rxd2 {[%emt 0:00:
00]} 60. Qxd2 {[%emt 0:00:16]} Nxd1 {[%emt 0:00:19]} 61. Qxd1 {[%emt 0:00:02]}
c5 {[%emt 0:00:19]} 62. Qd5 {[%emt 0:00:22]} Qe5 {[%emt 0:02:06]} 63. Qxe5 {
[%emt 0:01:03]} Bxe5 {[%emt 0:00:08]} 64. Nxc5 {[%emt 0:00:05]} Bd6 {[%emt 0:
00:00]} 65. Nb3 {[%emt 0:00:15]} Kg7 {[%emt 0:00:15]} 66. Kf1 {[%emt 0:00:22]}
Kf6 {[%emt 0:00:12]} 67. Ke2 {[%emt 0:00:24]} Ke5 {[%emt 0:00:13]} 68. Kd3 {
[%emt 0:00:45]} Kd5 {[%emt 0:00:12]} 69. f3 {[%emt 0:00:33]} Be5 {[%emt 0:00:
00]} 70. Nd2 {[%emt 0:01:03]} Kc5 {[%emt 0:02:02]} 71. Nb3+ {[%emt 0:00:40]}
Kb5 {[%emt 0:00:30]} 72. Nd2 {[%emt 0:01:02]} g5 {[%emt 0:01:04]} 73. Nb3 {
[%emt 0:00:21]} f4 {[%emt 0:00:31]} 74. e4 {[%emt 0:00:41]} h5 {[%emt 0:00:26]}
75. Nd2 {[%emt 0:00:28]} Kc5 {[%emt 0:00:41]} 76. Nb3+ {[%emt 0:00:16]} Kb5 {
[%emt 0:00:21]} 77. Nd2 {[%emt 0:00:09]} Kc5 {[%emt 0:00:29]} 78. Nb3+ {
[%emt 0:00:04]} Kb5 {[%emt 0:00:48]} 1/2-1/2

[Event "44th Chess Olympiad Women 2022"]
[Site "Chennai"]
[Date "2022.08.08"]
[Round "10.42"]
[White "Sezdbekova Aizhan"]
[Black "Naira Sinoia"]
[Result "1-0"]
[WhiteElo "1615"]
[BlackElo "1116"]
[Annotator "NA RC"]
[PlyCount "163"]
[EventDate "2022.??.??"]
[TimeControl "60"]

1. e4 {[%emt 0:00:05]} e5 {[%emt 0:00:08]} 2. Nf3 {[%emt 0:00:06]} Nc6 {
[%emt 0:00:11]} 3. Bc4 {[%emt 0:01:01]} h6 {[%emt 0:00:35]} 4. c3 {[%emt 0:00:
00]} d6 {[%emt 0:01:16]} 5. d4 {[%emt 0:00:55]} exd4 {[%emt 0:00:27]} 6. cxd4 {
[%emt 0:00:05]} Nf6 {[%emt 0:00:12]} 7. Nc3 {[%emt 0:00:28]} Bg4 {[%emt 0:00:
00]} 8. Be3 {[%emt 0:02:23]} Be7 {[%emt 0:00:19]} 9. Qb3 {[%emt 0:04:31]} O-O {
[%emt 0:00:24]} 10. Qxb7 {[%emt 0:02:58]} Na5 {[%emt 0:00:39]} 11. Qa6 {
[%emt 0:03:15]} c6 {[%emt 0:05:08]} 12. Be2 {[%emt 0:02:18]} Bc8 {[%emt 0:00:
00]} 13. Qd3 {[%emt 0:00:25]} Rb8 {[%emt 0:00:22]} 14. Rb1 {[%emt 0:00:41]} Be6
{[%emt 0:01:00]} 15. d5 {[%emt 0:08:53]} cxd5 {[%emt 0:03:34]} 16. exd5 {
[%emt 0:00:12]} Bg4 {[%emt 0:00:11]} 17. Bxa7 {[%emt 0:01:11]} Rb7 {[%emt 0:00:
00]} 18. Be3 {[%emt 0:06:21]} Qc8 {[%emt 0:01:20]} 19. Nd4 {[%emt 0:21:36]}
Bxe2 {[%emt 0:02:41]} 20. Ndxe2 {[%emt 0:00:58]} Nc4 {[%emt 0:00:30]} 21. b3 {
[%emt 0:02:14]} Nxe3 {[%emt 0:02:43]} 22. Qxe3 {[%emt 0:05:45]} Ng4 {[%emt 0:
00:00]} 23. Qg3 {[%emt 0:02:41]} Bf6 {[%emt 0:01:41]} 24. h3 {[%emt 0:08:10]}
Re8 {[%emt 0:03:17]} 25. O-O {[%emt 0:01:35]} Ne5 {[%emt 0:01:30]} 26. Rbc1 {
[%emt 0:02:27]} Qd8 {[%emt 0:00:59]} 27. Ne4 {[%emt 0:04:18]} Bh4 {[%emt 0:00:
00]} 28. Qc3 {[%emt 0:01:05]} Ng6 {[%emt 0:03:28]} 29. N4g3 {[%emt 0:04:08]}
Rbe7 {[%emt 0:01:03]} 30. Nf5 {[%emt 0:01:48]} Re5 {[%emt 0:01:07]} 31. Neg3 {
[%emt 0:01:59]} Nf4 {[%emt 0:01:13]} 32. Nxh4 {[%emt 0:03:44]} Qxh4 {[%emt 0:
00:00]} 33. Rfe1 {[%emt 0:00:45]} Nxd5 {[%emt 0:01:07]} 34. Qd2 {[%emt 0:00:45]
} Qf4 {[%emt 0:03:37]} 35. Qa5 {[%emt 0:01:51]} Nb4 {[%emt 0:01:15]} 36. Rxe5 {
[%emt 0:02:11]} Qxc1+ {[%emt 0:00:15]} 37. Kh2 {[%emt 0:00:04]} Rxe5 {[%emt 0:
00:00]} 38. Qxb4 {[%emt 0:00:07]} Qc5 {[%emt 0:01:40]} 39. Qf4 {[%emt 0:02:06]}
Qc2 {[%emt 0:00:49]} 40. Qd4 {[%emt 0:00:15]} Qxa2 {[%emt 0:01:16]} 41. Qxd6 {
[%emt 0:30:07]} Re6 {[%emt 0:30:16]} 42. Qd8+ {[%emt 0:00:00]} Kh7 {[%emt 0:00:
00]} 43. Qd3+ {[%emt 0:00:00]} g6 {[%emt 0:00:00]} 44. Qf3 {[%emt 0:00:00]} Kg8
{[%emt 0:00:00]} 45. Ne4 {[%emt 0:00:00]} Qb2 {[%emt 0:00:00]} 46. Qd3 {
[%emt 0:00:00]} Qe5+ {[%emt 0:00:00]} 47. Ng3 {[%emt 0:00:00]} Rd6 {[%emt 0:00:
00]} 48. Qf3 {[%emt 0:00:00]} Rf6 {[%emt 0:00:00]} 49. Qe4 {[%emt 0:00:00]} Qb2
{[%emt 0:00:00]} 50. f3 {[%emt 0:00:00]} Qxb3 {[%emt 0:00:00]} 51. Qa8+ {
[%emt 0:00:00]} Kh7 {[%emt 0:00:00]} 52. Ne4 {[%emt 0:00:00]} Rf4 {[%emt 0:00:
00]} 53. Qd8 {[%emt 0:00:00]} Qe6 {[%emt 0:00:00]} 54. Qc7 {[%emt 0:00:00]} Rf5
{[%emt 0:00:00]} 55. Qd6 {[%emt 0:00:00]} Qe5+ {[%emt 0:00:00]} 56. Qxe5 {
[%emt 0:00:00]} Rxe5 {[%emt 0:00:00]} 57. Nf6+ {[%emt 0:00:00]} Kg7 {[%emt 0:
00:00]} 58. Ng4 {[%emt 0:00:00]} Re2 {[%emt 0:00:00]} 59. f4 {[%emt 0:03:47]}
h5 {[%emt 0:00:00]} 60. Ne5 {[%emt 0:00:08]} Kf6 {[%emt 0:00:00]} 61. Nf3 {
[%emt 0:01:38]} Re3 {[%emt 0:00:00]} 62. Ng5 {[%emt 0:02:13]} Kf5 {[%emt 0:00:
00]} 63. Nxf7 {[%emt 0:02:24]} Kxf4 {[%emt 0:00:00]} 64. Nh8 {[%emt 0:00:46]}
g5 {[%emt 0:00:00]} 65. Ng6+ {[%emt 0:01:08]} Kf5 {[%emt 0:00:00]} 66. Nf8 {
[%emt 0:00:23]} g4 {[%emt 0:00:00]} 67. hxg4+ {[%emt 0:01:01]} hxg4 {[%emt 0:
00:00]} 68. Nd7 {[%emt 0:00:35]} g3+ {[%emt 0:00:00]} 69. Kh3 {[%emt 0:00:23]}
Kf4 {[%emt 0:00:00]} 70. Nf6 {[%emt 0:00:22]} Re5 {[%emt 0:00:00]} 71. Kh4 {
[%emt 0:00:31]} Rg5 {[%emt 0:00:00]} 72. Nh5+ {[%emt 0:00:41]} Rxh5+ {[%emt 0:
00:00]} 73. Kxh5 {[%emt 0:00:05]} Ke3 {[%emt 0:00:00]} 74. Kg4 {[%emt 0:00:08]}
Kf2 {[%emt 0:00:00]} 75. Kh3 {[%emt 0:00:07]} Ke3 {[%emt 0:00:00]} 76. Kxg3 {
[%emt 0:00:07]} Ke4 {[%emt 0:00:00]} 77. Kg4 {[%emt 0:00:11]} Ke5 {[%emt 0:00:
00]} 78. Kg5 {[%emt 0:00:19]} Ke6 {[%emt 0:00:00]} 79. Kg6 {[%emt 0:00:24]} Ke7
{[%emt 0:00:00]} 80. g4 {[%emt 0:00:19]} Kf8 {[%emt 0:00:00]} 81. Kh7 {[%emt 0:
00:00]} Kf7 {[%emt 0:00:00]} 82. g5 {[%emt 0:00:04]} 1-0

[Event "44th Chess Olympiad Women 2022"]
[Site "Chennai"]
[Date "2022.08.08"]
[Round "10.43"]
[White "Mazariegos, Silvia Carolina"]
[Black "Mongeli, Sasha"]
[Result "1/2-1/2"]
[WhiteElo "1851"]
[BlackElo "1672"]
[Annotator "NA RC"]
[PlyCount "110"]
[EventDate "2022.??.??"]
[TimeControl "60"]

1. e4 {[%emt 0:00:08]} c6 {[%emt 0:01:55]} 2. d4 {[%emt 0:00:07]} d5 {[%emt 0:
00:00]} 3. e5 {[%emt 0:00:04]} Bf5 {[%emt 0:00:19]} 4. c4 {[%emt 0:00:07]} e6 {
[%emt 0:00:50]} 5. Nc3 {[%emt 0:00:06]} Nd7 {[%emt 0:01:00]} 6. a3 {[%emt 0:00:
00]} Bg6 {[%emt 0:01:49]} 7. h4 {[%emt 0:02:34]} h5 {[%emt 0:09:11]} 8. Nge2 {
[%emt 0:06:30]} Bf5 {[%emt 0:22:32]} 9. Ng3 {[%emt 0:04:42]} dxc4 {[%emt 0:00:
00]} 10. Nxf5 {[%emt 0:06:22]} exf5 {[%emt 0:00:19]} 11. Bxc4 {[%emt 0:00:15]}
Nb6 {[%emt 0:00:58]} 12. Ba2 {[%emt 0:00:39]} Ne7 {[%emt 0:05:10]} 13. Bg5 {
[%emt 0:06:14]} Qd7 {[%emt 0:01:24]} 14. Bxe7 {[%emt 0:09:32]} Bxe7 {[%emt 0:
00:00]} 15. Qb3 {[%emt 0:00:27]} O-O {[%emt 0:04:51]} 16. O-O-O {[%emt 0:00:26]
} Rad8 {[%emt 0:02:13]} 17. g3 {[%emt 0:03:32]} Qc8 {[%emt 0:04:59]} 18. Rhe1 {
[%emt 0:05:54]} Nd5 {[%emt 0:01:14]} 19. Nxd5 {[%emt 0:02:23]} cxd5+ {[%emt 0:
00:00]} 20. Kb1 {[%emt 0:02:55]} Qd7 {[%emt 0:02:56]} 21. Rc1 {[%emt 0:01:07]}
b5 {[%emt 0:04:23]} 22. Re2 {[%emt 0:02:41]} a5 {[%emt 0:03:10]} 23. Rec2 {
[%emt 0:02:16]} a4 {[%emt 0:01:33]} 24. Qf3 {[%emt 0:01:14]} b4 {[%emt 0:01:41]
} 25. Rc7 {[%emt 0:08:25]} Qe8 {[%emt 0:01:41]} 26. axb4 {[%emt 0:04:53]} Bxb4
{[%emt 0:00:38]} 27. Rb7 {[%emt 0:00:34]} Rb8 {[%emt 0:03:01]} 28. Qxd5 {
[%emt 0:01:39]} a3 {[%emt 0:01:55]} 29. Rcc7 {[%emt 0:01:14]} Rxb7 {[%emt 0:00:
00]} 30. Rxb7 {[%emt 0:03:18]} Qa4 {[%emt 0:01:12]} 31. Bb3 {[%emt 0:05:46]}
Qa5 {[%emt 0:02:54]} 32. Rb5 {[%emt 0:02:21]} Qa6 {[%emt 0:02:13]} 33. Qb7 {
[%emt 0:05:39]} Qxb7 {[%emt 0:01:23]} 34. Rxb7 {[%emt 0:00:08]} Be1 {[%emt 0:
00:00]} 35. bxa3 {[%emt 0:01:04]} Bxf2 {[%emt 0:00:08]} 36. Rd7 {[%emt 0:00:36]
} Bxg3 {[%emt 0:00:11]} 37. a4 {[%emt 0:00:26]} Bxh4 {[%emt 0:00:25]} 38. a5 {
[%emt 0:00:11]} Ra8 {[%emt 0:02:30]} 39. Rxf7 {[%emt 0:00:27]} Kh7 {[%emt 0:00:
00]} 40. Rxf5 {[%emt 0:00:18]} Kg6 {[%emt 0:00:58]} 41. Rf3 {[%emt 0:32:48]}
Rxa5 {[%emt 0:30:18]} 42. d5 {[%emt 0:00:52]} Be7 {[%emt 0:00:00]} 43. Kb2 {
[%emt 0:00:00]} Rc5 {[%emt 0:00:00]} 44. Re3 {[%emt 0:00:00]} Kf5 {[%emt 0:00:
00]} 45. d6 {[%emt 0:00:00]} Bg5 {[%emt 0:00:00]} 46. e6 {[%emt 0:00:00]} Bxe3
{[%emt 0:03:18]} 47. e7 {[%emt 0:00:00]} Re5 {[%emt 0:00:39]} 48. d7 {[%emt 0:
00:00]} Bd4+ {[%emt 0:00:22]} 49. Kc1 {[%emt 0:00:00]} Rxe7 {[%emt 0:01:25]}
50. d8=Q {[%emt 0:00:00]} Bf6 {[%emt 0:00:12]} 51. Qd5+ {[%emt 0:00:00]} Re5 {
[%emt 0:00:35]} 52. Qf3+ {[%emt 0:00:00]} Kg5 {[%emt 0:00:10]} 53. Bf7 {
[%emt 0:00:00]} Kh6 {[%emt 0:00:19]} 54. Qd3 {[%emt 0:01:25]} Rg5 {[%emt 0:00:
00]} 55. Qe3 {[%emt 0:03:00]} Be5 {[%emt 0:00:48]} 1/2-1/2

[Event "44th Chess Olympiad Women 2022"]
[Site "Chennai"]
[Date "2022.08.08"]
[Round "10.43"]
[White "Natareno, Elvia"]
[Black "Mutisya, Jully"]
[Result "0-1"]
[WhiteElo "1581"]
[BlackElo "1428"]
[Annotator "NA RC"]
[PlyCount "102"]
[EventDate "2022.??.??"]
[TimeControl "60"]

1. Nf3 {[%emt 0:00:07]} Nf6 {[%emt 0:00:11]} 2. d4 {[%emt 0:00:06]} g6 {
[%emt 0:00:12]} 3. e3 {[%emt 0:00:23]} Bg7 {[%emt 0:00:23]} 4. Bd3 {[%emt 0:00:
00]} d6 {[%emt 0:00:33]} 5. b3 {[%emt 0:00:10]} O-O {[%emt 0:00:12]} 6. Bb2 {
[%emt 0:00:24]} Nc6 {[%emt 0:00:25]} 7. a3 {[%emt 0:00:45]} e5 {[%emt 0:02:05]}
8. dxe5 {[%emt 0:02:43]} dxe5 {[%emt 0:01:45]} 9. Nxe5 {[%emt 0:05:08]} Nxe5 {
[%emt 0:04:03]} 10. Bxe5 {[%emt 0:00:16]} Qd5 {[%emt 0:03:28]} 11. Bxf6 {
[%emt 0:02:24]} Qxg2 {[%emt 0:00:00]} 12. Bxg7 {[%emt 0:00:18]} Qxh1+ {[%emt 0:
00:00]} 13. Kd2 {[%emt 0:00:06]} Qxd1+ {[%emt 0:00:07]} 14. Kxd1 {[%emt 0:00:
00]} Kxg7 {[%emt 0:00:22]} 15. Nc3 {[%emt 0:00:09]} Bg4+ {[%emt 0:04:21]} 16.
Kd2 {[%emt 0:00:41]} c6 {[%emt 0:00:51]} 17. Rg1 {[%emt 0:00:17]} Be6 {[%emt 0:
00:00]} 18. h4 {[%emt 0:03:09]} h5 {[%emt 0:02:50]} 19. Ne2 {[%emt 0:00:07]}
Rad8 {[%emt 0:06:59]} 20. Nf4 {[%emt 0:00:24]} Bg4 {[%emt 0:01:34]} 21. Rg3 {
[%emt 0:00:21]} Kh8 {[%emt 0:15:32]} 22. Kc3 {[%emt 0:01:53]} Rd6 {[%emt 0:00:
00]} 23. f3 {[%emt 0:02:02]} Bd7 {[%emt 0:05:47]} 24. e4 {[%emt 0:01:48]} Rf6 {
[%emt 0:03:42]} 25. Ng2 {[%emt 0:05:00]} Re6 {[%emt 0:05:36]} 26. Nf4 {[%emt 0:
00:00]} Rf6 {[%emt 0:01:37]} 27. Ng2 {[%emt 0:00:23]} Re8 {[%emt 0:00:50]} 28.
f4 {[%emt 0:11:13]} Rfe6 {[%emt 0:11:05]} 29. Re3 {[%emt 0:06:47]} c5 {[%emt 0:
00:00]} 30. Ne1 {[%emt 0:03:20]} Bc6 {[%emt 0:01:10]} 31. e5 {[%emt 0:01:10]}
Rd8 {[%emt 0:03:29]} 32. Nf3 {[%emt 0:04:23]} Bxf3 {[%emt 0:01:06]} 33. Rxf3 {
[%emt 0:00:08]} Kg7 {[%emt 0:00:29]} 34. b4 {[%emt 0:01:53]} cxb4+ {[%emt 0:00:
00]} 35. axb4 {[%emt 0:00:27]} f6 {[%emt 0:00:43]} 36. exf6+ {[%emt 0:00:37]}
Rxf6 {[%emt 0:00:32]} 37. Kc4 {[%emt 0:01:15]} Rdf8 {[%emt 0:00:25]} 38. Rg3 {
[%emt 0:00:15]} Rxf4+ {[%emt 0:00:18]} 39. Kb5 {[%emt 0:00:14]} R8f6 {[%emt 0:
00:00]} 40. Rh3 {[%emt 0:00:14]} Rd6 {[%emt 0:02:19]} 41. Kc5 {[%emt 0:31:33]}
Rdf6 {[%emt 0:32:58]} 42. Re3 {[%emt 0:00:36]} Rxh4 {[%emt 0:04:03]} 43. Re7+ {
[%emt 0:00:07]} Rf7 {[%emt 0:00:10]} 44. Re6 {[%emt 0:00:04]} Rg4 {[%emt 0:00:
00]} 45. c4 {[%emt 0:00:29]} Rc7+ {[%emt 0:01:45]} 46. Kb5 {[%emt 0:00:18]} h4
{[%emt 0:00:00]} 47. c5 {[%emt 0:00:00]} h3 {[%emt 0:00:00]} 48. Re3 {[%emt 0:
00:00]} Rh4 {[%emt 0:00:00]} 49. Re1 {[%emt 0:00:00]} h2 {[%emt 0:00:00]} 50.
Rh1 {[%emt 0:00:00]} g5 {[%emt 0:00:00]} 51. Be2 {[%emt 0:00:00]} Kg6 {[%emt 0:
00:00]} 0-1